[Event "Latvijas 2022. gada jauniešu čempionāta fināls"]
[Site "Riga, Latvia"]
[Date "2022.06.16"]
[Round "8.27"]
[White "Paikens, Reinis"]
[Black "Aleidzans, Vadims"]
[Result "1-0"]
[TimeControl "3600+30"]
[WhiteElo "1534"]
[BlackElo "1367"]

1. c4 {[%clk 01:00:58]} {[%emt 00:00:01]} e6 {[%clk 01:00:52]} {[%emt
00:00:08]} 2. Nc3 {[%clk 01:01:23]} {[%emt 00:00:05]} d5 {[%clk 01:01:15]}
{[%emt 00:00:07]} 3. cxd5 {[%clk 01:01:50]} {[%emt 00:00:03]} exd5 {[%clk
01:01:41]} {[%emt 00:00:04]} 4. d4 {[%clk 01:02:15]} {[%emt 00:00:05]} Nf6
{[%clk 01:02:03]} {[%emt 00:00:08]} 5. g3 {[%clk 01:02:41]} {[%emt 00:00:05]}
c6 {[%clk 01:02:23]} {[%emt 00:00:10]} 6. Bg2 {[%clk 01:03:04]} {[%emt
00:00:06]} Bd6 {[%clk 01:02:41]} {[%emt 00:00:12]} 7. Nf3 {[%clk 01:03:29]}
{[%emt 00:00:05]} O-O {[%clk 01:03:05]} {[%emt 00:00:07]} 8. O-O {[%clk
01:03:56]} {[%emt 00:00:02]} Re8 {[%clk 01:03:14]} {[%emt 00:00:21]} 9. Re1
{[%clk 01:04:07]} {[%emt 00:00:19]} Bf5 {[%clk 01:02:39]} {[%emt 00:01:05]} 10.
Nh4 {[%clk 01:03:00]} {[%emt 00:01:37]} Bg4 {[%clk 01:02:43]} {[%emt 00:00:27]}
11. Qc2 {[%clk 01:03:12]} {[%emt 00:00:18]} Qb6 {[%clk 00:56:01]} {[%emt
00:07:12]} 12. Qd3 {[%clk 01:01:41]} {[%emt 00:02:01]} Nbd7 {[%clk 00:55:01]}
{[%emt 00:01:29]} 13. f3 {[%clk 01:00:18]} {[%emt 00:01:53]} Bh5 {[%clk
00:55:14]} {[%emt 00:00:17]} 14. e4 {[%clk 01:00:33]} {[%emt 00:00:14]} dxe4
{[%clk 00:54:19]} {[%emt 00:01:26]} 15. fxe4 {[%clk 01:00:38]} {[%emt
00:00:26]} c5 {[%clk 00:50:19]} {[%emt 00:04:29]} 16. Be3 {[%clk 00:52:05]}
{[%emt 00:09:03]} cxd4 {[%clk 00:47:41]} {[%emt 00:03:09]} 17. Bxd4 {[%clk
00:51:35]} {[%emt 00:00:59]} Bc5 {[%clk 00:46:49]} {[%emt 00:01:21]} 18. Bxc5
{[%clk 00:49:33]} {[%emt 00:02:33]} Nxc5 {[%clk 00:39:22]} {[%emt 00:07:57]} 19.
Qd4 {[%clk 00:49:04]} {[%emt 00:00:59]} Nd3 {[%clk 00:33:17]} {[%emt 00:06:35]}
20. Qxb6 {[%clk 00:45:56]} {[%emt 00:03:39]} axb6 {[%clk 00:33:40]} {[%emt
00:00:06]} 21. Reb1 {[%clk 00:44:22]} {[%emt 00:02:04]} Ng4 {[%clk 00:31:47]}
{[%emt 00:02:23]} 22. Bf3 {[%clk 00:42:50]} {[%emt 00:02:02]} Nf6 {[%clk
00:16:41]} {[%emt 00:15:37]} 23. Bxh5 {[%clk 00:38:39]} {[%emt 00:04:41]} Nxh5
{[%clk 00:16:59]} {[%emt 00:00:11]} 24. Rd1 {[%clk 00:38:54]} {[%emt 00:00:14]}
Nxb2 {[%clk 00:17:10]} {[%emt 00:00:20]} 25. Rd4 {[%clk 00:39:13]} {[%emt
00:00:11]} Nf6 {[%clk 00:10:25]} {[%emt 00:07:16]} 26. Nf5 {[%clk 00:36:01]}
{[%emt 00:03:42]} Rac8 {[%clk 00:06:31]} {[%emt 00:04:23]} 27. Nb5 {[%clk
00:29:55]} {[%emt 00:06:35]} Rxe4 {[%clk 00:05:54]} {[%emt 00:01:08]} 28. Rxe4
{[%clk 00:30:09]} {[%emt 00:00:16]} Nxe4 {[%clk 00:06:17]} {[%emt 00:00:07]} 29.
Ne7+ {[%clk 00:30:36]} {[%emt 00:00:04]} 1-0

[Event "Latvijas 2022. gada jauniešu čempionāta fināls"]
[Site "Riga, Latvia"]
[Date "2022.06.16"]
[Round "9.1"]
[White "Freibergs, Filips"]
[Black "Vingris, Mikelis"]
[Result "0-1"]
[TimeControl "3600+30"]
[WhiteElo "1250"]
[BlackElo "1781"]

1. d4 {[%clk 01:00:56]} {[%emt 00:00:03]} Nf6 {[%clk 01:00:56]} {[%emt
00:00:04]} 2. Nf3 {[%clk 01:01:19]} {[%emt 00:00:07]} c5 {[%clk 01:01:21]}
{[%emt 00:00:05]} 3. e3 {[%clk 01:01:17]} {[%emt 00:00:31]} g6 {[%clk
01:01:28]} {[%emt 00:00:24]} 4. b3 {[%clk 01:01:29]} {[%emt 00:00:18]} Bg7
{[%clk 01:01:40]} {[%emt 00:00:18]} 5. Bb2 {[%clk 01:02:22]} {[%emt 00:00:07]}
cxd4 {[%clk 01:02:11]} {[%emt 00:00:30]} 6. exd4 {[%clk 01:02:38]} {[%emt
00:00:14]} O-O {[%clk 01:02:21]} {[%emt 00:00:19]} 7. Nbd2 {[%clk 01:02:03]}
{[%emt 00:01:05]} d6 {[%clk 01:01:16]} {[%emt 00:01:36]} 8. Bd3 {[%clk
01:01:58]} {[%emt 00:00:34]} Nc6 {[%clk 01:01:05]} {[%emt 00:00:42]} 9. a3
{[%clk 01:01:52]} {[%emt 00:00:36]} Re8 {[%clk 00:59:29]} {[%emt 00:02:06]} 10.
O-O {[%clk 01:00:24]} {[%emt 00:01:57]} e5 {[%clk 00:53:37]} {[%emt 00:06:22]}
11. dxe5 {[%clk 01:00:04]} {[%emt 00:00:50]} dxe5 {[%clk 00:51:49]} {[%emt
00:02:18]} 12. Re1 {[%clk 00:58:55]} {[%emt 00:01:38]} Qc7 {[%clk 00:50:43]}
{[%emt 00:01:37]} 13. Bb5 {[%clk 00:56:09]} {[%emt 00:03:16]} Bg4 {[%clk
00:39:20]} {[%emt 00:11:53]} 14. Bxc6 {[%clk 00:50:49]} {[%emt 00:05:50]} Qxc6
{[%clk 00:38:40]} {[%emt 00:01:10]} 15. Rxe5 {[%clk 00:50:14]} {[%emt
00:01:05]} Red8 {[%clk 00:35:13]} {[%emt 00:03:57]} 16. Bd4 {[%clk 00:38:41]}
{[%emt 00:12:03]} Nh5 {[%clk 00:20:01]} {[%emt 00:15:42]} 17. Rc5 {[%clk
00:22:30]} {[%emt 00:16:39]} Qd6 {[%clk 00:16:31]} {[%emt 00:04:02]} 18. c3
{[%clk 00:19:44]} {[%emt 00:03:16]} b6 {[%clk 00:09:09]} {[%emt 00:07:52]} 19.
Rc4 {[%clk 00:19:36]} {[%emt 00:00:39]} Be6 {[%clk 00:08:18]} {[%emt 00:01:22]}
20. Rb4 {[%clk 00:19:31]} {[%emt 00:00:33]} Nf4 {[%clk 00:07:34]} {[%emt
00:01:14]} 21. Bxg7 {[%clk 00:07:46]} {[%emt 00:12:15]} Kxg7 {[%clk 00:07:58]}
{[%emt 00:00:07]} 22. g3 {[%clk 00:07:23]} {[%emt 00:00:52]} Nh3+ {[%clk
00:04:38]} {[%emt 00:03:51]} 23. Kg2 {[%clk 00:07:43]} {[%emt 00:00:10]} Qc6
{[%clk 00:04:40]} {[%emt 00:00:28]} 24. Rc1 {[%clk 00:05:03]} {[%emt 00:03:09]}
Ng5 {[%clk 00:04:28]} {[%emt 00:00:41]} 25. Qe2 {[%clk 00:05:01]} {[%emt
00:00:33]} Rxd2 {[%clk 00:03:57]} {[%emt 00:01:02]} 26. Qxd2 {[%clk 00:05:13]}
{[%emt 00:00:17]} Qxf3+ {[%clk 00:03:55]} {[%emt 00:00:32]} 27. Kf1 {[%clk
00:04:49]} {[%emt 00:00:55]} Bh3+ {[%clk 00:04:09]} {[%emt 00:00:17]} 28. Ke1
{[%clk 00:05:15]} {[%emt 00:00:02]} Re8+ {[%clk 00:04:35]} {[%emt 00:00:06]} 29.
Qe3 {[%clk 00:05:15]} {[%emt 00:00:32]} Rxe3+ {[%clk 00:04:59]} {[%emt
00:00:06]} 30. fxe3 {[%clk 00:05:38]} {[%emt 00:00:06]} Qxe3+ {[%clk 00:04:40]}
{[%emt 00:00:49]} 31. Kd1 {[%clk 00:06:05]} {[%emt 00:00:03]} Qd3+ {[%clk
00:04:40]} {[%emt 00:00:30]} 32. Ke1 {[%clk 00:06:34]} Ne4 {[%clk 00:04:56]}
{[%emt 00:00:14]} 33. Rd4 {[%clk 00:06:34]} {[%emt 00:00:29]} Qf1# {[%clk
00:05:17]} {[%emt 00:00:09]} 0-1

[Event "Latvijas 2022. gada jauniešu čempionāta fināls"]
[Site "Riga, Latvia"]
[Date "2022.06.16"]
[Round "9.2"]
[White "Petrovs, Renars"]
[Black "Sokolovskis, Pavels"]
[Result "1/2-1/2"]
[TimeControl "3600+30"]
[WhiteElo "1327"]
[BlackElo "1572"]

1. d4 {[%clk 01:00:59]} d5 {[%clk 01:00:54]} {[%emt 00:00:07]} 2. Bg5 {[%clk
01:01:24]} {[%emt 00:00:04]} h6 {[%clk 01:01:17]} {[%emt 00:00:07]} 3. Bh4
{[%clk 01:01:50]} {[%emt 00:00:04]} Nf6 {[%clk 00:59:18]} {[%emt 00:02:29]} 4.
Bxf6 {[%clk 01:02:10]} {[%emt 00:00:10]} gxf6 {[%clk 00:59:16]} {[%emt
00:00:32]} 5. e3 {[%clk 01:02:23]} {[%emt 00:00:17]} e5 {[%clk 00:58:33]}
{[%emt 00:01:13]} 6. c4 {[%clk 01:02:07]} {[%emt 00:00:47]} Be6 {[%clk
00:56:18]} {[%emt 00:02:45]} 7. Qb3 {[%clk 00:58:29]} {[%emt 00:04:07]} Nc6
{[%clk 00:50:07]} {[%emt 00:06:41]} 8. Nf3 {[%clk 00:52:33]} {[%emt 00:06:26]}
Bb4+ {[%clk 00:39:41]} {[%emt 00:10:56]} 9. Nc3 {[%clk 00:51:47]} {[%emt
00:01:16]} O-O {[%clk 00:36:46]} {[%emt 00:03:25]} 10. O-O-O {[%clk 00:48:41]}
{[%emt 00:03:36]} Bxc3 {[%clk 00:31:37]} {[%emt 00:05:39]} 11. Qxc3 {[%clk
00:48:44]} {[%emt 00:00:27]} e4 {[%clk 00:31:00]} {[%emt 00:01:07]} 12. Nd2
{[%clk 00:46:56]} {[%emt 00:02:18]} Qe7 {[%clk 00:28:02]} {[%emt 00:03:29]} 13.
cxd5 {[%clk 00:46:28]} {[%emt 00:00:58]} Bxd5 {[%clk 00:28:21]} {[%emt
00:00:10]} 14. Bc4 {[%clk 00:46:40]} {[%emt 00:00:18]} Rfd8 {[%clk 00:27:07]}
{[%emt 00:01:44]} 15. Bxd5 {[%clk 00:44:47]} {[%emt 00:02:23]} Rxd5 {[%clk
00:27:06]} {[%emt 00:00:31]} 16. Qb3 {[%clk 00:43:07]} {[%emt 00:02:40]} Rad8
{[%clk 00:26:46]} {[%emt 00:01:20]} 17. Qxb7 {[%clk 00:39:13]} {[%emt
00:04:24]} Nb4 {[%clk 00:24:21]} {[%emt 00:02:55]} 18. Kb1 {[%clk 00:36:13]}
{[%emt 00:03:30]} Nd3 {[%clk 00:23:08]} {[%emt 00:01:43]} 19. Rhf1 {[%clk
00:35:24]} {[%emt 00:01:18]} a6 {[%clk 00:16:04]} {[%emt 00:07:36]} 20. Qc6
{[%clk 00:24:45]} {[%emt 00:11:08]} Rb5 {[%clk 00:14:32]} {[%emt 00:02:03]} 21.
Nb3 {[%clk 00:24:31]} {[%emt 00:00:43]} Rdb8 {[%clk 00:13:55]} {[%emt
00:01:08]} 22. Rxd3 {[%clk 00:20:00]} {[%emt 00:05:02]} exd3 {[%clk 00:14:13]}
{[%emt 00:00:10]} 23. Rd1 {[%clk 00:20:23]} {[%emt 00:00:07]} a5 {[%clk
00:13:57]} {[%emt 00:00:47]} 24. Rd2 {[%clk 00:20:24]} {[%emt 00:00:30]} Qd6
{[%clk 00:06:26]} {[%emt 00:08:00]} 25. Qxd6 {[%clk 00:15:58]} {[%emt
00:04:56]} cxd6 {[%clk 00:06:51]} {[%emt 00:00:05]} 26. Nc1 {[%clk 00:16:13]}
{[%emt 00:00:14]} Rh5 {[%clk 00:06:50]} {[%emt 00:00:32]} 27. h3 {[%clk
00:16:21]} {[%emt 00:00:23]} Kf8 {[%clk 00:06:07]} {[%emt 00:01:13]} 28. Nxd3
{[%clk 00:16:43]} {[%emt 00:00:07]} Ke7 {[%clk 00:05:58]} {[%emt 00:00:40]} 29.
Nf4 {[%clk 00:16:54]} {[%emt 00:00:18]} Rhb5 {[%clk 00:06:09]} {[%emt
00:00:19]} 30. g3 {[%clk 00:16:57]} {[%emt 00:00:27]} Rc8 {[%clk 00:05:09]}
{[%emt 00:01:31]} 31. Rc2 {[%clk 00:16:38]} {[%emt 00:00:49]} Rxc2 {[%clk
00:05:16]} {[%emt 00:00:22]} 32. Kxc2 {[%clk 00:17:02]} {[%emt 00:00:06]} Rb8
{[%emt 00:01:22]} 1/2-1/2

[Event "Latvijas 2022. gada jauniešu čempionāta fināls"]
[Site "Riga, Latvia"]
[Date "2022.06.16"]
[Round "9.3"]
[White "Krastins, Arturs"]
[Black "Bogdanovics, Kirills"]
[Result "0-1"]
[TimeControl "3600+30"]
[WhiteElo "1506"]
[BlackElo "1785"]

1. g3 {[%clk 01:00:59]} {[%emt 00:00:01]} d5 {[%clk 01:00:25]} {[%emt
00:00:36]} 2. Bg2 {[%clk 01:01:22]} {[%emt 00:00:07]} e5 {[%clk 01:00:39]}
{[%emt 00:00:15]} 3. d3 {[%clk 01:01:44]} {[%emt 00:00:07]} Nf6 {[%clk
01:00:47]} {[%emt 00:00:22]} 4. Nd2 {[%clk 01:01:50]} {[%emt 00:00:25]} c5
{[%clk 01:00:58]} {[%emt 00:00:19]} 5. e4 {[%clk 01:01:47]} {[%emt 00:00:33]}
d4 {[%clk 01:01:12]} {[%emt 00:00:15]} 6. a4 {[%clk 01:01:49]} {[%emt
00:00:29]} Nc6 {[%clk 01:01:30]} {[%emt 00:00:12]} 7. Ne2 {[%clk 01:01:21]}
{[%emt 00:00:58]} Be6 {[%clk 01:00:14]} {[%emt 00:01:45]} 8. h3 {[%clk
01:00:56]} {[%emt 00:00:55]} Nd7 {[%clk 00:59:56]} {[%emt 00:00:48]} 9. f4
{[%clk 01:01:08]} {[%emt 00:00:18]} f6 {[%clk 01:00:18]} {[%emt 00:00:09]} 10.
O-O {[%clk 01:01:01]} {[%emt 00:00:37]} Qe7 {[%clk 01:00:02]} {[%emt 00:00:46]}
11. Nf3 {[%clk 01:00:45]} {[%emt 00:00:46]} h6 {[%clk 00:58:40]} {[%emt
00:01:52]} 12. Nh4 {[%clk 00:57:49]} {[%emt 00:03:25]} Qf7 {[%clk 00:55:38]}
{[%emt 00:03:32]} 13. f5 {[%clk 00:57:53]} {[%emt 00:00:27]} g5 {[%clk
00:55:31]} {[%emt 00:00:38]} 14. fxe6 {[%clk 00:56:19]} {[%emt 00:02:03]} Qxe6
{[%clk 00:55:56]} {[%emt 00:00:05]} 15. Nf5 {[%clk 00:56:38]} {[%emt 00:00:11]}
a5 {[%clk 00:53:52]} {[%emt 00:02:33]} 16. c3 {[%clk 00:54:43]} {[%emt
00:02:26]} Ra6 {[%clk 00:53:50]} {[%emt 00:00:33]} 17. Qc2 {[%clk 00:54:16]}
{[%emt 00:00:55]} Kd8 {[%clk 00:50:33]} {[%emt 00:03:48]} 18. Bd2 {[%clk
00:54:18]} {[%emt 00:00:28]} Rh7 {[%clk 00:49:51]} {[%emt 00:01:12]} 19. Rfb1
{[%clk 00:53:50]} {[%emt 00:00:55]} Nb6 {[%clk 00:49:11]} {[%emt 00:01:13]} 20.
Nc1 {[%clk 00:52:41]} {[%emt 00:01:38]} Rc7 {[%clk 00:48:46]} {[%emt 00:00:56]}
21. Qd1 {[%clk 00:49:53]} {[%emt 00:03:17]} c4 {[%clk 00:47:48]} {[%emt
00:01:29]} 22. cxd4 {[%clk 00:49:55]} {[%emt 00:00:28]} Nxd4 {[%clk 00:47:46]}
{[%emt 00:00:32]} 23. Nxd4 {[%clk 00:50:14]} {[%emt 00:00:10]} exd4 {[%clk
00:47:44]} {[%emt 00:00:33]} 24. dxc4 {[%clk 00:47:54]} {[%emt 00:02:50]} Nxc4
{[%clk 00:47:58]} {[%emt 00:00:15]} 25. b3 {[%clk 00:47:28]} {[%emt 00:00:56]}
Nxd2 {[%clk 00:48:10]} {[%emt 00:00:18]} 26. Qxd2 {[%clk 00:47:50]} {[%emt
00:00:08]} Bb4 {[%clk 00:48:23]} {[%emt 00:00:18]} 27. Qe2 {[%clk 00:46:11]}
{[%emt 00:02:06]} Rac6 {[%clk 00:47:55]} {[%emt 00:01:02]} 28. Nd3 {[%clk
00:45:45]} {[%emt 00:00:56]} Rc2 {[%clk 00:48:16]} {[%emt 00:00:07]} 29. Qg4
{[%clk 00:43:27]} {[%emt 00:02:48]} Qxg4 {[%clk 00:47:51]} {[%emt 00:00:54]} 30.
hxg4 {[%clk 00:43:53]} {[%emt 00:00:06]} R7c3 {[%clk 00:48:05]} {[%emt
00:00:16]} 31. Bf1 {[%clk 00:44:04]} {[%emt 00:00:19]} Rd2 {[%clk 00:48:02]}
{[%emt 00:00:33]} 32. Rd1 {[%clk 00:43:30]} {[%emt 00:00:57]} Rxd1 {[%clk
00:48:27]} {[%emt 00:00:12]} 33. Rxd1 {[%clk 00:43:57]} {[%emt 00:00:04]} Rxb3
{[%clk 00:48:51]} {[%emt 00:00:05]} 34. Nxb4 {[%clk 00:44:19]} {[%emt
00:00:08]} Rxb4 {[%clk 00:48:50]} {[%emt 00:00:30]} 35. Bb5 {[%clk 00:44:41]}
{[%emt 00:00:09]} Ke7 {[%clk 00:49:15]} {[%emt 00:00:04]} 36. Kf2 {[%clk
00:44:19]} {[%emt 00:00:49]} Ke6 {[%clk 00:49:28]} {[%emt 00:00:20]} 37. Kf3
{[%clk 00:39:59]} {[%emt 00:04:49]} Ke5 {[%clk 00:49:35]} {[%emt 00:00:25]} 38.
Rd3 {[%clk 00:38:06]} {[%emt 00:02:22]} Rb1 {[%clk 00:49:54]} {[%emt 00:00:12]}
39. Bc4 {[%clk 00:37:31]} {[%emt 00:01:05]} Rf1+ {[%clk 00:49:33]} {[%emt
00:00:51]} 40. Ke2 {[%clk 00:37:25]} {[%emt 00:00:33]} Ra1 {[%clk 00:49:27]}
{[%emt 00:00:38]} 41. Bd5 {[%clk 00:37:26]} {[%emt 00:00:27]} Rxa4 {[%clk
00:49:29]} {[%emt 00:00:31]} 42. Bxb7 {[%clk 00:37:49]} {[%emt 00:00:06]} Ra2+
{[%clk 00:39:34]} {[%emt 00:10:26]} 43. Kf3 {[%clk 00:36:51]} {[%emt 00:01:26]}
a4 {[%clk 00:38:53]} {[%emt 00:01:13]} 44. Bd5 {[%clk 00:37:11]} {[%emt
00:00:09]} Ra1 {[%clk 00:39:03]} {[%emt 00:00:20]} 45. Rd2 {[%clk 00:37:04]}
{[%emt 00:00:25]} Ra3+ {[%clk 00:38:01]} {[%emt 00:01:43]} 46. Kf2 {[%clk
00:37:14]} {[%emt 00:00:20]} Rc3 {[%clk 00:37:40]} {[%emt 00:00:53]} 47. Ra2
{[%clk 00:36:47]} {[%emt 00:00:53]} a3 {[%clk 00:37:48]} {[%emt 00:00:26]} 48.
Kf1 {[%clk 00:30:24]} {[%emt 00:06:52]} Rxg3 {[%clk 00:25:28]} {[%emt
00:12:51]} 49. Rf2 {[%clk 00:30:50]} {[%emt 00:00:03]} d3 {[%clk 00:25:45]}
{[%emt 00:00:13]} 50. Ra2 {[%clk 00:25:38]} {[%emt 00:05:42]} Rxg4 {[%clk
00:25:04]} {[%emt 00:01:11]} 51. Rxa3 {[%clk 00:24:09]} {[%emt 00:01:59]} Rf4+
{[%clk 00:22:41]} {[%emt 00:02:53]} 52. Kg2 {[%clk 00:23:03]} {[%emt 00:01:35]}
Kd4 {[%clk 00:22:30]} {[%emt 00:00:42]} 53. Ra4+ {[%clk 00:23:09]} {[%emt
00:00:24]} Ke3 {[%clk 00:22:11]} {[%emt 00:00:48]} 54. Ra3 {[%clk 00:23:29]}
{[%emt 00:00:09]} h5 {[%clk 00:15:27]} {[%emt 00:07:17]} 55. Bc4 {[%clk
00:23:17]} {[%emt 00:00:42]} Rf2+ {[%clk 00:15:05]} {[%emt 00:00:51]} 56. Kg3
{[%clk 00:19:26]} {[%emt 00:04:21]} Rd2 {[%clk 00:15:21]} {[%emt 00:00:12]} 57.
Ra6 {[%clk 00:19:31]} {[%emt 00:00:25]} Rc2 {[%clk 00:14:35]} {[%emt 00:01:16]}
58. Bb3 {[%clk 00:16:56]} {[%emt 00:03:05]} Rc3 {[%clk 00:12:28]} {[%emt
00:02:37]} 59. Bd1 {[%clk 00:17:04]} {[%emt 00:00:22]} h4 {[%clk 00:12:37]}
{[%emt 00:00:24]} 60. Kg4 {[%clk 00:17:21]} {[%emt 00:00:10]} Rc1 {[%clk
00:12:53]} {[%emt 00:00:16]} 61. Rxf6 {[%clk 00:15:51]} {[%emt 00:02:00]} Rxd1
{[%clk 00:12:49]} {[%emt 00:00:32]} 62. e5 {[%clk 00:16:16]} {[%emt 00:00:05]}
Rg1+ {[%clk 00:12:33]} {[%emt 00:00:46]} 63. Kh3 {[%clk 00:16:25]} {[%emt
00:00:21]} d2 {[%clk 00:12:45]} {[%emt 00:00:18]} 64. Rd6 {[%clk 00:16:46]}
{[%emt 00:00:09]} d1=Q {[%clk 00:13:03]} {[%emt 00:00:11]} 0-1

[Event "Latvijas 2022. gada jauniešu čempionāta fināls"]
[Site "Riga, Latvia"]
[Date "2022.06.16"]
[Round "9.4"]
[White "Sterns, Tomass Kristians"]
[Black "Lahs, Einars"]
[Result "1/2-1/2"]
[TimeControl "3600+30"]
[WhiteElo "1431"]
[BlackElo "1675"]

1. d4 {[%clk 01:00:57]} {[%emt 00:00:02]} d5 {[%clk 01:00:55]} {[%emt
00:00:06]} 2. c4 {[%clk 01:01:22]} {[%emt 00:00:05]} dxc4 {[%clk 01:01:21]}
{[%emt 00:00:04]} 3. e4 {[%clk 01:01:45]} {[%emt 00:00:07]} e5 {[%clk
01:01:45]} {[%emt 00:00:06]} 4. Nf3 {[%clk 01:01:41]} {[%emt 00:00:34]} Bb4+
{[%clk 01:02:03]} {[%emt 00:00:12]} 5. Bd2 {[%clk 01:01:43]} {[%emt 00:00:28]}
Bxd2+ {[%clk 01:02:20]} {[%emt 00:00:13]} 6. Qxd2 {[%clk 01:01:52]} {[%emt
00:00:21]} exd4 {[%clk 00:56:29]} {[%emt 00:06:20]} 7. Nxd4 {[%clk 01:00:17]}
{[%emt 00:02:06]} Qe7 {[%clk 00:55:36]} {[%emt 00:01:23]} 8. Nc3 {[%clk
00:59:47]} {[%emt 00:01:01]} Nf6 {[%clk 00:55:19]} {[%emt 00:00:46]} 9. Qg5
{[%clk 00:58:03]} {[%emt 00:02:14]} O-O {[%clk 00:51:51]} {[%emt 00:03:59]} 10.
Bxc4 {[%clk 00:55:42]} {[%emt 00:02:51]} h6 {[%clk 00:46:00]} {[%emt 00:06:21]}
11. Qe3 {[%clk 00:48:13]} {[%emt 00:07:57]} c5 {[%clk 00:37:04]} {[%emt
00:09:27]} 12. Nde2 {[%clk 00:47:06]} {[%emt 00:01:37]} Nc6 {[%clk 00:27:47]}
{[%emt 00:09:47]} 13. O-O {[%clk 00:46:18]} {[%emt 00:01:18]} Re8 {[%clk
00:14:49]} {[%emt 00:13:28]} 14. f3 {[%clk 00:44:50]} {[%emt 00:01:58]} Be6
{[%clk 00:09:50]} {[%emt 00:05:28]} 15. Bxe6 {[%clk 00:43:57]} {[%emt
00:01:24]} fxe6 {[%clk 00:10:16]} {[%emt 00:00:04]} 16. Rfd1 {[%clk 00:41:41]}
{[%emt 00:02:47]} Rad8 {[%clk 00:08:19]} {[%emt 00:02:25]} 17. Rac1 {[%clk
00:38:30]} {[%emt 00:03:41]} Ne5 {[%clk 00:06:42]} {[%emt 00:01:59]} 18. Na4
{[%clk 00:35:43]} {[%emt 00:03:26]} Rxd1+ {[%clk 00:04:58]} {[%emt 00:02:15]}
19. Rxd1 {[%clk 00:35:55]} {[%emt 00:00:18]} Rd8 {[%clk 00:05:09]} {[%emt
00:00:19]} 20. Qc1 {[%clk 00:26:09]} {[%emt 00:10:16]} b6 {[%clk 00:04:14]}
{[%emt 00:01:25]} 21. Nac3 {[%clk 00:26:20]} {[%emt 00:00:18]} Rxd1+ {[%clk
00:01:55]} {[%emt 00:02:49]} 22. Qxd1 {[%clk 00:26:46]} {[%emt 00:00:03]} Qd7
{[%clk 00:02:04]} {[%emt 00:00:21]} 23. Qxd7 {[%clk 00:26:46]} {[%emt
00:00:30]} Nfxd7 {[%clk 00:02:32]} {[%emt 00:00:03]} 24. Nb5 {[%clk 00:26:23]}
{[%emt 00:00:53]} Nc6 {[%clk 00:02:21]} {[%emt 00:00:40]} 25. a3 {[%clk
00:25:56]} {[%emt 00:00:58]} Nde5 {[%clk 00:02:03]} {[%emt 00:00:48]} 26. Nd6
{[%clk 00:22:36]} {[%emt 00:03:50]} Nf7 {[%clk 00:00:39]} {[%emt 00:01:54]} 27.
Nxf7 {[%clk 00:19:25]} {[%emt 00:03:41]} Kxf7 {[%emt 00:00:03]} 28. Kf2 {[%clk
00:19:37]} {[%emt 00:00:16]} Na5 {[%clk 00:00:58]} {[%emt 00:00:40]} 29. Nc1
{[%clk 00:19:36]} {[%emt 00:00:31]} Nc4 {[%clk 00:00:45]} {[%emt 00:00:43]} 30.
Nd3 {[%clk 00:19:51]} {[%emt 00:00:15]} Kf6 {[%clk 00:00:57]} {[%emt 00:00:17]}
31. Ke2 {[%clk 00:19:23]} {[%emt 00:00:59]} e5 {[%clk 00:00:34]} {[%emt
00:00:54]} 32. a4 {[%clk 00:19:13]} {[%emt 00:00:39]} Ke6 {[%clk 00:00:33]}
{[%emt 00:00:31]} 1/2-1/2